[Event "Late-Titled-Tuesday-Blitz-September-05-2023"]
[Site "Chess.com"]
[Date "2023.09.05"]
[Round "11"]
[White "Fengwi"]
[Black "FredddieCroderg"]
[Result "1-0"]
[WhiteElo "2430"]
[BlackElo "2288"]
[TimeControl "180+1"]
[EndTime "16:04:14 PDT"]
[Termination "Fengwi won by resignation"]

1. Nf3 {[%clk 0:02:57]} 1... Nf6 {[%clk 0:02:53.7]} 2. b3 {[%clk 0:02:55]} 2...
g6 {[%clk 0:02:54]} 3. Bb2 {[%clk 0:02:52.8]} 3... Bg7 {[%clk 0:02:54.9]} 4. g3
{[%clk 0:02:53.1]} 4... b5 {[%clk 0:02:51.1]} 5. Bg2 {[%clk 0:02:52.8]} 5... Bb7
{[%clk 0:02:51.5]} 6. O-O {[%clk 0:02:51.1]} 6... O-O {[%clk 0:02:52]} 7. a4
{[%clk 0:02:42.5]} 7... b4 {[%clk 0:02:46.1]} 8. d3 {[%clk 0:02:40.8]} 8... c5
{[%clk 0:02:44.5]} 9. e4 {[%clk 0:02:39.2]} 9... d6 {[%clk 0:02:42.9]} 10. Nbd2
{[%clk 0:02:38.4]} 10... Nc6 {[%clk 0:02:42.2]} 11. Qe2 {[%clk 0:02:31.8]} 11...
Rc8 {[%clk 0:02:31.1]} 12. Rad1 {[%clk 0:02:24.9]} 12... Nd4 {[%clk 0:02:24.3]}
13. Nxd4 {[%clk 0:02:22.4]} 13... cxd4 {[%clk 0:02:25.2]} 14. Nc4 {[%clk
0:02:19.7]} 14... e5 {[%clk 0:02:11.8]} 15. f4 {[%clk 0:02:18.4]} 15... Qe7
{[%clk 0:02:04.8]} 16. Bc1 {[%clk 0:02:14]} 16... Ba6 {[%clk 0:02:00.6]} 17. Bh3
{[%clk 0:02:10.9]} 17... Rc7 {[%clk 0:01:54.5]} 18. fxe5 {[%clk 0:02:08.5]}
18... dxe5 {[%clk 0:01:54.1]} 19. Bg5 {[%clk 0:02:07.9]} 19... Bxc4 {[%clk
0:01:53.2]} 20. bxc4 {[%clk 0:02:03.9]} 20... Qd6 {[%clk 0:01:53.7]} 21. a5
{[%clk 0:01:52.6]} 21... Nd7 {[%clk 0:01:45.7]} 22. Rb1 {[%clk 0:01:32.1]} 22...
Nc5 {[%clk 0:01:23.2]} 23. Bd2 {[%clk 0:01:24.1]} 23... Na6 {[%clk 0:01:20]} 24.
Rb3 {[%clk 0:01:18.1]} 24... Qc5 {[%clk 0:01:17.5]} 25. Ra1 {[%clk 0:01:14.5]}
25... Rb8 {[%clk 0:01:14.9]} 26. Qe1 {[%clk 0:01:13.6]} 26... Bf8 {[%clk
0:01:14.2]} 27. Bg4 {[%clk 0:01:09.9]} 27... h5 {[%clk 0:01:12.9]} 28. Bf3
{[%clk 0:01:09.5]} 28... Kh7 {[%clk 0:01:13.2]} 29. g4 {[%clk 0:01:09.1]} 29...
hxg4 {[%clk 0:01:11.4]} 30. Bxg4 {[%clk 0:01:10]} 30... Bh6 {[%clk 0:01:11.6]}
31. Qh4 {[%clk 0:01:08.5]} 31... Qf8 {[%clk 0:01:11.6]} 32. Rf1 {[%clk
0:01:05.1]} 32... Rc6 {[%clk 0:01:01.5]} 33. Rf3 {[%clk 0:01:00.1]} 33... g5
{[%clk 0:00:50.3]} 34. Bxg5 {[%clk 0:00:58.2]} 34... Rg6 {[%clk 0:00:48.8]} 35.
Bf5 {[%clk 0:00:52.5]} 35... Rb6 {[%clk 0:00:47.2]} 36. Rh3 {[%clk 0:00:49.5]}
36... Kg8 {[%clk 0:00:43.9]} 37. Bxg6 {[%clk 0:00:42.6]} 37... Rxg6 {[%clk
0:00:44.8]} 38. Rg3 {[%clk 0:00:41.1]} 38... Qg7 {[%clk 0:00:43.2]} 39. Bxh6
{[%clk 0:00:40.7]} 1-0

[Event "Late-Titled-Tuesday-Blitz-September-05-2023"]
[Site "Chess.com"]
[Date "2023.09.05"]
[Round "11"]
[White "Grossboss19"]
[Black "Alexei_Gubajdullin"]
[Result "1-0"]
[WhiteElo "2512"]
[BlackElo "2578"]
[TimeControl "180+1"]
[EndTime "16:04:22 PDT"]
[Termination "Grossboss19 won by resignation"]

1. Nf3 {[%clk 0:03:00.9]} 1... Nf6 {[%clk 0:02:59.8]} 2. c4 {[%clk 0:02:57.3]}
2... g6 {[%clk 0:02:59.9]} 3. d4 {[%clk 0:02:52.9]} 3... Bg7 {[%clk 0:02:59.9]}
4. Nc3 {[%clk 0:02:53.5]} 4... O-O {[%clk 0:02:59.7]} 5. e4 {[%clk 0:02:53.2]}
5... d6 {[%clk 0:03:00.2]} 6. Be2 {[%clk 0:02:45]} 6... Na6 {[%clk 0:03:00.1]}
7. O-O {[%clk 0:02:45.2]} 7... e5 {[%clk 0:02:59.9]} 8. d5 {[%clk 0:02:43.9]}
8... Nc5 {[%clk 0:02:59.1]} 9. Nd2 {[%clk 0:02:42.1]} 9... Bh6 {[%clk
0:02:57.6]} 10. Qc2 {[%clk 0:02:39.3]} 10... a5 {[%clk 0:02:57.3]} 11. Rb1
{[%clk 0:02:25.8]} 11... Nh5 {[%clk 0:02:49.2]} 12. Bxh5 {[%clk 0:02:13.6]}
12... gxh5 {[%clk 0:02:48.3]} 13. Nb3 {[%clk 0:02:11.1]} 13... Bxc1 {[%clk
0:02:46.2]} 14. Rbxc1 {[%clk 0:02:09.4]} 14... Nxb3 {[%clk 0:02:41.3]} 15. axb3
{[%clk 0:02:05.3]} 15... h4 {[%clk 0:02:38.7]} 16. f4 {[%clk 0:02:02.3]} 16...
exf4 {[%clk 0:02:36.6]} 17. Rxf4 {[%clk 0:01:59.8]} 17... Qg5 {[%clk 0:02:04.1]}
18. Rcf1 {[%clk 0:01:46.7]} 18... f6 {[%clk 0:02:01.1]} 19. Qf2 {[%clk
0:01:44.2]} 19... h3 {[%clk 0:01:57]} 20. g3 {[%clk 0:01:21.8]} 20... Kg7 {[%clk
0:01:54]} 21. e5 {[%clk 0:01:15.8]} 21... dxe5 {[%clk 0:01:43.9]} 22. Ne4 {[%clk
0:01:15.2]} 22... Qg6 {[%clk 0:01:43.1]} 23. Rxf6 {[%clk 0:01:08.2]} 23... Rxf6
{[%clk 0:01:42.8]} 24. Nxf6 {[%clk 0:01:03.8]} 24... h6 {[%clk 0:00:24.6]} 25.
Nh5+ {[%clk 0:00:37.9]} 25... Kg8 {[%clk 0:00:09.6]} 26. Qf8+ {[%clk 0:00:36.5]}
26... Kh7 {[%clk 0:00:08.1]} 27. Rf7+ {[%clk 0:00:35.5]} 1-0

[Event "Late-Titled-Tuesday-Blitz-September-05-2023"]
[Site "Chess.com"]
[Date "2023.09.05"]
[Round "11"]
[White "MariaFominykh"]
[Black "Nikachu"]
[Result "1-0"]
[WhiteElo "2267"]
[BlackElo "2168"]
[TimeControl "180+1"]
[EndTime "16:04:22 PDT"]
[Termination "MariaFominykh won on time"]

1. d4 {[%clk 0:03:00.9]} 1... Nf6 {[%clk 0:02:59.5]} 2. c4 {[%clk 0:02:59.1]}
2... g6 {[%clk 0:02:57.2]} 3. Nc3 {[%clk 0:02:59]} 3... d5 {[%clk 0:02:57.1]} 4.
cxd5 {[%clk 0:02:57.4]} 4... Nxd5 {[%clk 0:02:58]} 5. Bd2 {[%clk 0:02:57.8]}
5... Bg7 {[%clk 0:02:56.7]} 6. e4 {[%clk 0:02:58.1]} 6... Nb6 {[%clk 0:02:56.4]}
7. Be3 {[%clk 0:02:57]} 7... O-O {[%clk 0:02:53.1]} 8. Nf3 {[%clk 0:02:57.4]}
8... Nc6 {[%clk 0:02:51.4]} 9. Be2 {[%clk 0:02:55.6]} 9... e5 {[%clk 0:02:43.8]}
10. d5 {[%clk 0:02:50.5]} 10... Na5 {[%clk 0:02:39]} 11. Qc2 {[%clk 0:02:44.5]}
11... c6 {[%clk 0:02:37.9]} 12. O-O {[%clk 0:02:28.4]} 12... cxd5 {[%clk
0:02:34.7]} 13. Bxb6 {[%clk 0:02:28.4]} 13... axb6 {[%clk 0:02:20.9]} 14. Nxd5
{[%clk 0:02:28]} 14... Bg4 {[%clk 0:02:10.9]} 15. Rfd1 {[%clk 0:02:19.9]} 15...
Bxf3 {[%clk 0:02:08]} 16. Bxf3 {[%clk 0:02:17.7]} 16... Nc6 {[%clk 0:02:06.9]}
17. Qb3 {[%clk 0:02:13.4]} 17... Nd4 {[%clk 0:01:57.8]} 18. Qxb6 {[%clk
0:02:08.3]} 18... Qg5 {[%clk 0:01:55.8]} 19. Rd3 {[%clk 0:01:57.8]} 19... Rac8
{[%clk 0:01:49.6]} 20. Rad1 {[%clk 0:01:42.8]} 20... Rc2 {[%clk 0:01:48.2]} 21.
Qxb7 {[%clk 0:01:33.6]} 21... Rc1 {[%clk 0:01:43.1]} 22. Kf1 {[%clk 0:01:09.4]}
22... Rfc8 {[%clk 0:01:32.4]} 23. Ne7+ {[%clk 0:01:08.2]} 23... Kf8 {[%clk
0:00:16.3]} 24. Nxc8 {[%clk 0:01:06.6]} 24... Nxf3 {[%clk 0:00:02.6]} 25. Qb4+
{[%clk 0:00:49.6]} 25... Ke8 {[%clk 0:00:01.6]} 26. Nd6+ {[%clk 0:00:41.2]}
26... Kf8 {[%clk 0:00:01.2]} 27. Nf5+ {[%clk 0:00:38]} 1-0

[Event "Late-Titled-Tuesday-Blitz-September-05-2023"]
[Site "Chess.com"]
[Date "2023.09.05"]
[Round "11"]
[White "GoltsevDmitry2000"]
[Black "DvaHrasta"]
[Result "0-1"]
[WhiteElo "2629"]
[BlackElo "2529"]
[TimeControl "180+1"]
[EndTime "16:04:25 PDT"]
[Termination "DvaHrasta won by checkmate"]

1. e4 {[%clk 0:02:58.7]} 1... c6 {[%clk 0:02:59.6]} 2. Nf3 {[%clk 0:02:59.4]}
2... d5 {[%clk 0:02:59.5]} 3. Nc3 {[%clk 0:03:00.3]} 3... Nf6 {[%clk 0:02:59.1]}
4. exd5 {[%clk 0:02:59.3]} 4... cxd5 {[%clk 0:02:58.4]} 5. d4 {[%clk 0:03:00.2]}
5... Nc6 {[%clk 0:02:57.9]} 6. Bd3 {[%clk 0:02:58]} 6... Bg4 {[%clk 0:02:57]} 7.
Ne2 {[%clk 0:02:53.2]} 7... Bxf3 {[%clk 0:02:55.4]} 8. gxf3 {[%clk 0:02:54.1]}
8... g6 {[%clk 0:02:48.1]} 9. h4 {[%clk 0:02:53]} 9... Bg7 {[%clk 0:02:45.2]}
10. c3 {[%clk 0:02:53.4]} 10... O-O {[%clk 0:02:40.3]} 11. Bg5 {[%clk
0:02:53.2]} 11... e5 {[%clk 0:02:37.8]} 12. h5 {[%clk 0:02:53.7]} 12... exd4
{[%clk 0:02:34.3]} 13. hxg6 {[%clk 0:02:52.7]} 13... fxg6 {[%clk 0:02:31.5]} 14.
cxd4 {[%clk 0:02:50.7]} 14... Qa5+ {[%clk 0:02:28.3]} 15. Kf1 {[%clk 0:02:49.8]}
15... Nh5 {[%clk 0:02:22]} 16. Kg2 {[%clk 0:02:44.5]} 16... Rae8 {[%clk
0:02:15]} 17. Qb3 {[%clk 0:02:42.4]} 17... Rxe2 {[%clk 0:02:05.9]} 18. Bxe2
{[%clk 0:02:39.9]} 18... Nxd4 {[%clk 0:02:04.1]} 19. Qd1 {[%clk 0:02:35.8]}
19... Ne6 {[%clk 0:01:54.6]} 20. Be3 {[%clk 0:02:35]} 20... Nhf4+ {[%clk
0:01:49]} 21. Bxf4 {[%clk 0:02:33.4]} 21... Nxf4+ {[%clk 0:01:49]} 22. Kf1
{[%clk 0:02:33.9]} 22... Bxb2 {[%clk 0:01:43.2]} 23. Rb1 {[%clk 0:02:33.4]}
23... Qc3 {[%clk 0:01:34.5]} 24. Qe1 {[%clk 0:02:14.2]} 24... Qxe1+ {[%clk
0:01:28.8]} 25. Kxe1 {[%clk 0:02:14.6]} 25... Bc3+ {[%clk 0:01:27.6]} 26. Kd1
{[%clk 0:02:15.1]} 26... b6 {[%clk 0:01:26]} 27. Bb5 {[%clk 0:02:14.9]} 27... h5
{[%clk 0:01:20.4]} 28. Kc2 {[%clk 0:02:14.4]} 28... Bd4 {[%clk 0:01:17.1]} 29.
Rhe1 {[%clk 0:02:10.3]} 29... Rc8+ {[%clk 0:01:15.2]} 30. Kb3 {[%clk 0:02:10.7]}
30... Rc3+ {[%clk 0:01:12.2]} 31. Ka4 {[%clk 0:02:11.2]} 31... Rxf3 {[%clk
0:01:03.7]} 32. Rbc1 {[%clk 0:02:10.6]} 32... Bc5 {[%clk 0:00:58.2]} 33. Bd7
{[%clk 0:02:03.7]} 33... a6 {[%clk 0:00:54.3]} 34. Rxc5 {[%clk 0:01:59.5]} 34...
bxc5 {[%clk 0:00:51.5]} 35. Rf1 {[%clk 0:01:53.6]} 35... Kg7 {[%clk 0:00:47.1]}
36. Ka5 {[%clk 0:01:51.7]} 36... Ra3+ {[%clk 0:00:46.3]} 37. Kb6 {[%clk
0:01:52.3]} 37... c4 {[%clk 0:00:45.8]} 38. Kc5 {[%clk 0:01:49.8]} 38... Rxa2
{[%clk 0:00:44.3]} 39. f3 {[%clk 0:01:49.2]} 39... Kf6 {[%clk 0:00:41.1]} 40.
Rb1 {[%clk 0:01:47.8]} 40... Rb2 {[%clk 0:00:38.9]} 41. Ra1 {[%clk 0:01:46.9]}
41... c3 {[%clk 0:00:37.1]} 42. Kd4 {[%clk 0:01:45.8]} 42... c2 {[%clk
0:00:35.3]} 43. Kc3 {[%clk 0:01:46.1]} 43... Rb7 {[%clk 0:00:32.2]} 44. Rxa6+
{[%clk 0:01:34.7]} 44... Kg5 {[%clk 0:00:31.7]} 45. Kxc2 {[%clk 0:01:34.9]}
45... Rxd7 {[%clk 0:00:31.1]} 46. Kd2 {[%clk 0:01:35.8]} 46... Re7 {[%clk
0:00:30.5]} 47. Kc3 {[%clk 0:01:34.9]} 47... h4 {[%clk 0:00:29.8]} 48. Kd4
{[%clk 0:01:35.7]} 48... h3 {[%clk 0:00:28.9]} 49. Ra2 {[%clk 0:01:35.3]} 49...
Kh4 {[%clk 0:00:27.5]} 50. Rc2 {[%clk 0:01:33.2]} 50... Kg3 {[%clk 0:00:26.9]}
51. Rc1 {[%clk 0:01:32.8]} 51... h2 {[%clk 0:00:26.8]} 52. Ra1 {[%clk 0:01:33]}
52... Ne2+ {[%clk 0:00:25.5]} 53. Kd3 {[%clk 0:01:31.9]} 53... Ng1 {[%clk
0:00:25.3]} 54. f4 {[%clk 0:01:30.7]} 54... h1=Q {[%clk 0:00:23.8]} 55. f5
{[%clk 0:01:30.8]} 55... Qe4+ {[%clk 0:00:23.5]} 56. Kd2 {[%clk 0:01:30.2]}
56... Qe3+ {[%clk 0:00:22.7]} 57. Kc2 {[%clk 0:01:29.7]} 57... Rc7+ {[%clk
0:00:21.8]} 58. Kb2 {[%clk 0:01:29.7]} 58... Qc3+ {[%clk 0:00:21.8]} 59. Kb1
{[%clk 0:01:29.4]} 59... Rb7+ {[%clk 0:00:21.9]} 60. Ka2 {[%clk 0:01:29.3]}
60... Qb2# {[%clk 0:00:22.1]} 0-1

[Event "Late-Titled-Tuesday-Blitz-September-05-2023"]
[Site "Chess.com"]
[Date "2023.09.05"]
[Round "11"]
[White "InadaC"]
[Black "CraiggoryC"]
[Result "0-1"]
[WhiteElo "2137"]
[BlackElo "2222"]
[TimeControl "180+1"]
[EndTime "16:04:25 PDT"]
[Termination "CraiggoryC won by checkmate"]

1. d4 {[%clk 0:03:00.9]} 1... e6 {[%clk 0:02:11.6]} 2. c4 {[%clk 0:03:00.2]}
2... Nf6 {[%clk 0:02:11.9]} 3. Nc3 {[%clk 0:02:59.3]} 3... d5 {[%clk 0:02:12.4]}
4. cxd5 {[%clk 0:02:59.1]} 4... exd5 {[%clk 0:02:13.3]} 5. Bg5 {[%clk
0:02:58.6]} 5... c6 {[%clk 0:02:13.7]} 6. e3 {[%clk 0:02:58.8]} 6... Be7 {[%clk
0:02:14]} 7. Bd3 {[%clk 0:02:59]} 7... O-O {[%clk 0:02:13.7]} 8. Nge2 {[%clk
0:02:59.5]} 8... Nbd7 {[%clk 0:02:14.2]} 9. f3 {[%clk 0:02:58.2]} 9... Re8
{[%clk 0:02:09.1]} 10. Bh4 {[%clk 0:02:58.3]} 10... Nf8 {[%clk 0:02:08.2]} 11.
Bf2 {[%clk 0:02:58.6]} 11... b5 {[%clk 0:01:53]} 12. a3 {[%clk 0:02:58]} 12...
a5 {[%clk 0:01:52.1]} 13. O-O {[%clk 0:02:58]} 13... Be6 {[%clk 0:01:26.8]} 14.
e4 {[%clk 0:02:47.9]} 14... b4 {[%clk 0:01:26.5]} 15. axb4 {[%clk 0:02:47.2]}
15... axb4 {[%clk 0:01:26.8]} 16. Rxa8 {[%clk 0:02:47.7]} 16... Qxa8 {[%clk
0:01:27.2]} 17. Na4 {[%clk 0:02:47.4]} 17... dxe4 {[%clk 0:01:12.5]} 18. fxe4
{[%clk 0:02:46.8]} 18... Ng4 {[%clk 0:01:12.1]} 19. Nf4 {[%clk 0:02:41.8]} 19...
Qb8 {[%clk 0:00:48.8]} 20. e5 {[%clk 0:02:12.7]} 20... Nxf2 {[%clk 0:00:43.9]}
21. Rxf2 {[%clk 0:02:12.9]} 21... Rd8 {[%clk 0:00:30]} 22. Nxe6 {[%clk 0:02:12]}
22... Nxe6 {[%clk 0:00:30]} 23. Qh5 {[%clk 0:02:04.4]} 23... g6 {[%clk
0:00:26.5]} 24. Qf3 {[%clk 0:02:02.6]} 24... Ng5 {[%clk 0:00:20.8]} 25. Qxc6
{[%clk 0:01:57.6]} 25... Rxd4 {[%clk 0:00:17.7]} 26. h4 {[%clk 0:01:53.7]} 26...
Rxd3 {[%clk 0:00:15.6]} 27. hxg5 {[%clk 0:01:53.5]} 27... Bxg5 {[%clk
0:00:14.9]} 28. Qc4 {[%clk 0:01:49.9]} 28... Rd1+ {[%clk 0:00:15]} 29. Rf1
{[%clk 0:01:48.4]} 29... Rxf1+ {[%clk 0:00:14.7]} 30. Kxf1 {[%clk 0:01:46.5]}
30... Qxe5 {[%clk 0:00:14.8]} 31. Qxb4 {[%clk 0:01:42.6]} 31... h5 {[%clk
0:00:12.6]} 32. Nc3 {[%clk 0:01:40.5]} 32... Be3 {[%clk 0:00:11.4]} 33. Qb7
{[%clk 0:01:36.3]} 33... Qf4+ {[%clk 0:00:08.4]} 34. Qf3 {[%clk 0:01:36.7]}
34... Qxf3+ {[%clk 0:00:08.8]} 35. gxf3 {[%clk 0:01:37]} 35... g5 {[%clk
0:00:08.8]} 36. Nd5 {[%clk 0:01:37.2]} 36... Bd4 {[%clk 0:00:08.6]} 37. b4
{[%clk 0:01:36.6]} 37... Kf8 {[%clk 0:00:07.1]} 38. Kg2 {[%clk 0:01:36.1]} 38...
Ke8 {[%clk 0:00:07.3]} 39. b5 {[%clk 0:01:33.5]} 39... Kd7 {[%clk 0:00:07.4]}
40. Nb4 {[%clk 0:01:34.1]} 40... Kd6 {[%clk 0:00:05.9]} 41. Nc6 {[%clk
0:01:34.5]} 41... Bb6 {[%clk 0:00:04.9]} 42. Kg3 {[%clk 0:01:31.6]} 42... Kc5
{[%clk 0:00:04.3]} 43. Ne5 {[%clk 0:01:30.8]} 43... Bc7 {[%clk 0:00:04.2]} 44.
f4 {[%clk 0:01:30.3]} 44... gxf4+ {[%clk 0:00:04.1]} 45. Kxf4 {[%clk 0:01:30.9]}
45... f6 {[%clk 0:00:04.6]} 46. b6 {[%clk 0:01:30.5]} 46... Bxe5+ {[%clk
0:00:03.5]} 47. Kf5 {[%clk 0:01:30.1]} 47... Kxb6 {[%clk 0:00:03.7]} 48. Kg6
{[%clk 0:01:30.4]} 48... Kc5 {[%clk 0:00:04.2]} 49. Kxh5 {[%clk 0:01:31]} 49...
Kd4 {[%clk 0:00:04.7]} 50. Kg4 {[%clk 0:01:31.6]} 50... Ke3 {[%clk 0:00:04.9]}
51. Kh3 {[%clk 0:01:32.4]} 51... f5 {[%clk 0:00:04.3]} 52. Kg2 {[%clk
0:01:33.3]} 52... Ke2 {[%clk 0:00:02.8]} 53. Kh3 {[%clk 0:01:33.1]} 53... f4
{[%clk 0:00:03.2]} 54. Kg2 {[%clk 0:01:32.8]} 54... f3+ {[%clk 0:00:03.6]} 55.
Kh1 {[%clk 0:01:33.4]} 55... f2 {[%clk 0:00:02.4]} 56. Kg2 {[%clk 0:01:33.2]}
56... f1=Q# {[%clk 0:00:03]} 0-1

[Event "Late-Titled-Tuesday-Blitz-September-05-2023"]
[Site "Chess.com"]
[Date "2023.09.05"]
[Round "11"]
[White "TheMagician"]
[Black "HajiyevKanan"]
[Result "0-1"]
[WhiteElo "2109"]
[BlackElo "2452"]
[TimeControl "180+1"]
[EndTime "16:04:46 PDT"]
[Termination "HajiyevKanan won by resignation"]

1. d4 {[%clk 0:03:00.9]} 1... Nf6 {[%clk 0:02:46.2]} 2. c4 {[%clk 0:03:00.1]}
2... e6 {[%clk 0:02:46.4]} 3. Nf3 {[%clk 0:02:53.1]} 3... b6 {[%clk 0:02:46.2]}
4. g3 {[%clk 0:02:53]} 4... Ba6 {[%clk 0:02:46.9]} 5. b3 {[%clk 0:02:44.8]} 5...
Bb4+ {[%clk 0:02:46.5]} 6. Bd2 {[%clk 0:02:44.8]} 6... Be7 {[%clk 0:02:47.3]} 7.
Nc3 {[%clk 0:02:41.7]} 7... O-O {[%clk 0:02:47.1]} 8. Bg2 {[%clk 0:02:41.3]}
8... Bb7 {[%clk 0:02:46.1]} 9. O-O {[%clk 0:02:40.7]} 9... d5 {[%clk 0:02:44.6]}
10. Ne5 {[%clk 0:02:37.8]} 10... Nbd7 {[%clk 0:02:43.4]} 11. Bg5 {[%clk
0:02:35.3]} 11... h6 {[%clk 0:02:33.1]} 12. Nxd7 {[%clk 0:02:33.9]} 12... Qxd7
{[%clk 0:02:27.4]} 13. Bf4 {[%clk 0:02:30.5]} 13... c6 {[%clk 0:02:23.5]} 14.
cxd5 {[%clk 0:02:25.7]} 14... exd5 {[%clk 0:02:21.5]} 15. Be5 {[%clk 0:02:25.4]}
15... Ng4 {[%clk 0:02:14.6]} 16. Bf4 {[%clk 0:02:25]} 16... Qf5 {[%clk
0:02:14.8]} 17. e4 {[%clk 0:02:19.5]} 17... dxe4 {[%clk 0:02:12.8]} 18. Nxe4
{[%clk 0:02:10.2]} 18... Rad8 {[%clk 0:02:05.4]} 19. Re1 {[%clk 0:01:47.4]}
19... Bb4 {[%clk 0:02:02.1]} 20. Re2 {[%clk 0:01:31.2]} 20... Ba6 {[%clk
0:01:59.4]} 21. Rc2 {[%clk 0:01:26.7]} 21... c5 {[%clk 0:01:54.5]} 22. Bd6
{[%clk 0:01:17.5]} 22... Rfe8 {[%clk 0:01:49.1]} 23. a3 {[%clk 0:01:06.9]} 23...
Ba5 {[%clk 0:01:42.2]} 24. b4 {[%clk 0:01:03]} 24... Rxe4 {[%clk 0:01:26.5]} 25.
f3 {[%clk 0:00:47.6]} 25... Rxd4 {[%clk 0:01:17.5]} 26. Qc1 {[%clk 0:00:29.6]}
26... R4xd6 {[%clk 0:01:06]} 27. fxg4 {[%clk 0:00:26.8]} 27... Rd1+ {[%clk
0:01:06.1]} 28. Qxd1 {[%clk 0:00:20.2]} 28... Rxd1+ {[%clk 0:01:07]} 29. Rxd1
{[%clk 0:00:19.5]} 29... Qxc2 {[%clk 0:01:07.6]} 30. Rd8+ {[%clk 0:00:16.6]}
30... Kh7 {[%clk 0:01:07.7]} 31. bxa5 {[%clk 0:00:17.5]} 31... Qc1+ {[%clk
0:01:00.6]} 32. Kf2 {[%clk 0:00:16.1]} 32... Qb2+ {[%clk 0:01:00.6]} 33. Kg1
{[%clk 0:00:14.4]} 33... Qxa3 {[%clk 0:00:49.5]} 34. axb6 {[%clk 0:00:14.1]}
34... axb6 {[%clk 0:00:49.1]} 35. h4 {[%clk 0:00:10.4]} 35... Qxg3 {[%clk
0:00:47.1]} 36. Kh1 {[%clk 0:00:05.6]} 36... Qxh4+ {[%clk 0:00:45.5]} 37. Kg1
{[%clk 0:00:05.2]} 37... Qxg4 {[%clk 0:00:46.4]} 38. Kf2 {[%clk 0:00:05.1]}
38... Qh4+ {[%clk 0:00:45.2]} 0-1

[Event "Late-Titled-Tuesday-Blitz-September-05-2023"]
[Site "Chess.com"]
[Date "2023.09.05"]
[Round "11"]
[White "Witik"]
[Black "Bobbybunny"]
[Result "1-0"]
[WhiteElo "2637"]
[BlackElo "2232"]
[TimeControl "180+1"]
[EndTime "16:04:51 PDT"]
[Termination "Witik won by resignation"]

1. c4 {[%clk 0:02:57.4]} 1... c5 {[%clk 0:02:59.3]} 2. g3 {[%clk 0:02:57]} 2...
Nc6 {[%clk 0:02:59.5]} 3. Bg2 {[%clk 0:02:57.3]} 3... g6 {[%clk 0:02:59.8]} 4.
Nc3 {[%clk 0:02:56.4]} 4... Bg7 {[%clk 0:03:00.1]} 5. d3 {[%clk 0:02:56.7]} 5...
e6 {[%clk 0:02:58.6]} 6. h4 {[%clk 0:02:56.2]} 6... h6 {[%clk 0:02:57.7]} 7. h5
{[%clk 0:02:56.4]} 7... g5 {[%clk 0:02:56.9]} 8. Bxc6 {[%clk 0:02:57]} 8... bxc6
{[%clk 0:02:47.1]} 9. f4 {[%clk 0:02:57.4]} 9... g4 {[%clk 0:02:35.1]} 10. e4
{[%clk 0:02:55]} 10... d6 {[%clk 0:02:31.4]} 11. Qxg4 {[%clk 0:02:52.9]} 11...
Kf8 {[%clk 0:02:28.4]} 12. Be3 {[%clk 0:02:39.8]} 12... Rb8 {[%clk 0:02:25.9]}
13. e5 {[%clk 0:02:36.7]} 13... Rxb2 {[%clk 0:02:17.7]} 14. Nge2 {[%clk
0:02:33.5]} 14... Ne7 {[%clk 0:02:03.2]} 15. O-O {[%clk 0:02:24.5]} 15... Nf5
{[%clk 0:02:01.6]} 16. Bf2 {[%clk 0:02:24.9]} 16... Rg8 {[%clk 0:01:54.4]} 17.
Qf3 {[%clk 0:02:22.8]} 17... Nd4 {[%clk 0:01:44.1]} 18. Nxd4 {[%clk 0:02:19.3]}
18... cxd4 {[%clk 0:01:42.9]} 19. Bxd4 {[%clk 0:02:15.6]} 19... c5 {[%clk
0:01:29.5]} 20. Bf2 {[%clk 0:02:05.4]} 20... Bb7 {[%clk 0:01:29.2]} 21. Ne4
{[%clk 0:02:04.8]} 21... Qd7 {[%clk 0:01:16.7]} 22. Rab1 {[%clk 0:01:43.5]}
22... Rxb1 {[%clk 0:01:13.9]} 23. Rxb1 {[%clk 0:01:43.2]} 23... Qc6 {[%clk
0:01:11.7]} 24. Qd1 {[%clk 0:01:29.4]} 24... f5 {[%clk 0:01:06.1]} 25. exf6
{[%clk 0:01:20]} 25... Bxf6 {[%clk 0:01:03.9]} 26. Rxb7 {[%clk 0:00:54.9]} 26...
Qxb7 {[%clk 0:01:03.1]} 27. Nxf6 {[%clk 0:00:55.1]} 27... Rg7 {[%clk 0:01:00.7]}
28. Ne4 {[%clk 0:00:48.2]} 28... Qc6 {[%clk 0:00:50.5]} 29. Qb3 {[%clk
0:00:45.7]} 29... Rb7 {[%clk 0:00:48.5]} 30. Qc3 {[%clk 0:00:43.5]} 30... e5
{[%clk 0:00:44.6]} 31. fxe5 {[%clk 0:00:41]} 31... Rb1+ {[%clk 0:00:41.9]} 32.
Kg2 {[%clk 0:00:35.3]} 32... d5 {[%clk 0:00:40.2]} 33. cxd5 {[%clk 0:00:34.9]}
33... Qxd5 {[%clk 0:00:40.3]} 34. Qxc5+ {[%clk 0:00:33.1]} 34... Qxc5 {[%clk
0:00:40.2]} 35. Bxc5+ {[%clk 0:00:33.4]} 35... Kf7 {[%clk 0:00:39.1]} 36. d4
{[%clk 0:00:30.8]} 36... Ke6 {[%clk 0:00:38.5]} 37. a3 {[%clk 0:00:22.9]} 37...
Kf5 {[%clk 0:00:35.9]} 38. Nf2 {[%clk 0:00:21.4]} 38... Ke6 {[%clk 0:00:31.8]}
39. Bxa7 {[%clk 0:00:20.2]} 39... Kd5 {[%clk 0:00:31.8]} 40. Bc5 {[%clk
0:00:20.1]} 40... Rb3 {[%clk 0:00:31.4]} 41. g4 {[%clk 0:00:20.4]} 1-0